bitfinex-derivatives/quotes_SOLF0:USTF0_20241224
["timestamp","ask_amount","ask_price","bid_price","bid_amount"]
[1735035615577,2.6134,191.59,191.53,2.6142]
[1735035616479,16.24161872,191.63,191.54,2.6141]
[1735035616781,13.10161872,191.63,191.51,13.10161872]
[1735035617078,3.14,191.64,191.51,13.10161872]
[1735035617780,2.6129,191.63,191.54,2.614]
[1735035617981,3.14,191.64,191.51,16.24161872]
[1735035618381,12.1,191.64,191.51,16.24161872]
[1735035618773,2.613,191.62,191.56,2.6137]
[1735035619280,12.1,191.64,191.51,16.24161872]
[1735035619479,8.29,191.62,191.51,16.24161872]
[1735035619672,2.6132,191.61,191.55,2.6138]
[1735035620078,8.29,191.62,191.55,2.6138]
[1735035620481,8.29,191.62,191.51,16.24161872]
[1735035620684,8.29,191.62,191.56,2.6138]
[1735035621279,2.6131,191.61,191.51,16.24161872]
[1735035622483,13.10161872,191.6,191.46,1.6102]
[1735035622684,3.14,191.59,191.47,13.10161872]
[1735035623281,3.14,191.59,191.47,16.24161872]
[1735035623580,3.14,191.59,191.47,13.10161872]
[1735035623884,13.10161872,191.57,191.46,4.7502]
[1735035624383,15.71541872,191.57,191.51,2.6145]
[1735035624580,15.71541872,191.57,191.46,4.7502]
[1735035624984,15.71541872,191.57,191.46,1.6102]
[1735035625178,15.71541872,191.57,191.47,3.14]
[1735035625383,13.10161872,191.6,191.47,16.24161872]
[1735035625584,11.43,191.62,191.5,13.10161872]
[1735035626084,8.29,191.62,191.5,13.10161872]
[1735035626286,8.29,191.62,191.53,13.10161872]
[1735035626590,10.903,191.62,191.57,2.6136]
[1735035626991,8.29,191.62,191.54,4.7174]
[1735035627190,2.6131,191.61,191.56,2.6138]
[1735035627389,8.29,191.62,191.54,4.7174]
[1735035627880,2.6134,191.59,191.54,7.3313]
[1735035628391,8.29,191.62,191.54,3.1176]
[1735035628586,2.6137,191.57,191.54,3.1176]
[1735035628892,13.10161872,191.6,191.54,3.1176]
[1735035629099,2.6137,191.57,191.52,2.6143]
[1735035629697,16.24161872,191.6,191.49,3.14]
[1735035630490,16.24161872,191.6,191.48,3.1374]
[1735035630690,13.10161872,191.57,191.48,3.1374]
[1735035631299,13.10161872,191.54,191.48,1.5224]
[1735035631498,16.24161872,191.54,191.46,1.5629]
[1735035631695,23.53161872,191.54,191.42,3.1775]
[1735035632404,2.6145,191.51,191.46,2.6151]
[1735035636600,2.6145,191.51,191.42,3.14]
[1735035636601,7.29,191.54,191.43,13.10161872]
[1735035636797,7.29,191.54,191.46,13.10161872]
[1735035637099,7.29,191.54,191.47,3.14]
[1735035637598,14.48,191.54,191.47,3.14]
[1735035638403,14.48,191.54,191.5,2.6146]
[1735035640005,14.48,191.54,191.47,3.14]
[1735035640204,14.48,191.54,191.51,2.6145]
[1735035640798,14.48,191.54,191.49,3.0833]
[1735035641102,14.48,191.54,191.52,2.6142]
[1735035641297,14.48,191.54,191.49,3.0833]
[1735035641505,14.48,191.54,191.53,2.6142]
[1735035641704,7.1237,191.54,191.53,2.6142]
[1735035655611,7.1237,191.54,191.49,3.0833]
[1735035656916,7.1237,191.54,191.47,11.56704754]
[1735035657317,8.38704754,191.53,191.47,2.6149]
[1735035657517,8.38704754,191.51,191.44,62.46789333]
[1735035658019,2.6149,191.49,191.44,7.3524]
[1735035658213,11.58704754,191.51,191.44,4.7371]
[1735035658414,3.2,191.51,191.47,8.38704754]
[1735035659322,3.2,191.51,191.48,2.6148]
[1735035660418,3.2,191.51,191.47,2.615]
[1735035661218,5.8145,191.51,191.47,2.615]
[1735035662122,3.2,191.51,191.47,2.615]
[1735035662422,3.2,191.51,191.49,2.6147]
[1735035662623,3.2,191.51,191.5,8.38704754]
[1735035663018,0.7476,191.51,191.5,11.00164754]
[1735035663219,8.38704754,191.57,191.5,8.38704754]
[1735035663722,18.90704754,191.57,191.5,8.38704754]
[1735035663918,18.90704754,191.57,191.52,2.6143]
[1735035665918,10.52,191.57,191.52,11.00134754]
[1735035667227,10.52,191.57,191.5,8.38704754]
[1735035667228,18.90704754,191.57,191.5,8.38704754]
[1735035668527,21.52074754,191.57,191.52,2.6143]
[1735035670929,13.1337,191.57,191.52,11.00134754]
[1735035671328,13.1337,191.57,191.56,8.38704754]
[1735035671329,10.52,191.57,191.56,8.38704754]
[1735035671728,10.52,191.57,191.54,14.12094754]
[1735035672223,10.52,191.57,191.56,8.38704754]
[1735035672224,5.6155,191.57,191.56,8.38704754]
[1735035672436,8.38704754,191.7,191.56,8.38704754]
[1735035672626,8.38704754,191.7,191.62,8.38704754]
[1735035672823,1.5543,191.71,191.6,14.12014754]
[1735035672824,2.6126,191.65,191.6,14.12014754]
[1735035673023,2.6126,191.65,191.6,11.50704754]
[1735035673425,2.6124,191.66,191.6,11.50704754]
[1735035673731,9.21,191.66,191.6,11.50704754]
[1735035674032,9.21,191.66,191.62,2.613]
[1735035674628,9.21,191.66,191.61,2.6131]
[1735035676032,9.21,191.66,191.6,11.50704754]
[1735035676431,11.8225,191.66,191.6,11.50704754]
[1735035677431,11.8225,191.66,191.6,14.12024754]
[1735035681531,11.8225,191.66,191.62,8.38704754]
[1735035681929,2.6126,191.65,191.6,3.12]
[1735035682132,2.6126,191.65,191.61,8.38704754]
[1735035682333,9.21,191.66,191.61,11.00014754]
[1735035686042,9.21,191.66,191.61,8.38704754]
[1735035686340,9.21,191.66,191.63,2.6128]
[1735035686538,9.21,191.66,191.6,3.12]
[1735035686837,9.21,191.66,191.61,8.38704754]
[1735035687639,9.21,191.66,191.61,11.00014754]
[1735035688638,9.21,191.66,191.61,2.6131]
[1735035688838,9.21,191.66,191.61,11.00014754]
[1735035690141,11.8225,191.66,191.61,11.00014754]
[1735035695749,2.6127,191.65,191.59,2.6133]
[1735035696048,8.38704754,191.62,191.55,8.38704754]
[1735035696449,2.6133,191.61,191.55,8.38704754]
[1735035697048,2.6134,191.6,191.55,11.00094754]
[1735035698651,8.38704754,191.6,191.53,2.6141]
[1735035698853,8.38704754,191.58,191.53,2.6141]
[1735035699046,8.38704754,191.58,191.51,8.38704754]
[1735035699246,2.6139,191.56,191.51,8.38704754]
[1735035699952,2.614,191.55,191.51,8.38704754]
[1735035700153,2.614,191.55,191.49,7.3257]
[1735035700154,2.614,191.55,191.49,11.00174754]
[1735035700550,2.6142,191.54,191.49,8.38704754]
[1735035702654,2.6143,191.53,191.49,8.38704754]
[1735035703555,2.6141,191.54,191.49,8.38704754]
[1735035704055,8.38704754,191.56,191.49,8.38704754]
[1735035704260,1.5666,191.57,191.51,8.38704754]
[1735035704554,8.38704754,191.6,191.47,3.1]
[1735035704751,10.83,191.61,191.5,8.38704754]
[1735035704752,2.6139,191.56,191.5,8.38704754]
[1735035705650,2.614,191.55,191.49,2.6148]
[1735035705852,2.614,191.55,191.5,8.38704754]
[1735035707055,2.614,191.55,191.5,11.00174754]
[1735035709254,2.614,191.55,191.5,8.38704754]
[1735035712162,10.83,191.61,191.49,8.38704754]
[1735035712163,8.38704754,191.56,191.49,8.38704754]
[1735035713262,2.6141,191.54,191.49,8.38704754]
[1735035713960,2.6141,191.54,191.47,3.1]
[1735035713961,2.6138,191.56,191.51,8.38704754]
[1735035714560,2.6138,191.56,191.51,11.00154754]
[1735035715362,10.83,191.61,191.55,8.38704754]
[1735035715669,10.83,191.61,191.57,8.38704754]
[1735035716560,10.83,191.61,191.58,2.6135]
[1735035716757,10.83,191.61,191.57,8.38704754]
[1735035717155,10.83,191.61,191.58,2.6135]
[1735035717956,10.83,191.61,191.57,8.38704754]
[1735035718158,10.83,191.61,191.54,3.0737]
[1735035718159,10.83,191.61,191.58,8.38704754]
[1735035720466,10.83,191.61,191.59,2.6134]
[1735035722565,10.83,191.61,191.58,14.10054754]
[1735035724975,10.83,191.61,191.56,5.7138]
[1735035725162,10.83,191.61,191.54,3.0737]
[1735035725163,10.83,191.61,191.55,3.1]
[1735035725362,8.38704754,191.6,191.5,59.21649333]
[1735035725562,8.38704754,191.58,191.51,11.48704754]
[1735035726467,11.00064754,191.58,191.53,2.6141]
[1735035726673,22.07064754,191.58,191.53,2.6141]
[1735035729275,13.6836,191.58,191.53,2.6141]
[1735035729775,11.07,191.58,191.51,11.48704754]
[1735035729980,2.6137,191.57,191.51,14.10144754]
[1735035732684,2.6137,191.57,191.51,11.00144754]
[1735035734481,2.614,191.55,191.49,2.6147]
[1735035734686,8.38704754,191.56,191.49,14.10174754]
[1735035735584,8.38704754,191.54,191.47,11.00204754]
[1735035735783,8.38704754,191.54,191.47,2.615]
[1735035735977,8.38704754,191.54,191.47,11.00204754]
[1735035736879,8.38704754,191.52,191.45,2.6153]
[1735035737081,8.38704754,191.52,191.43,8.38704754]
[1735035737293,2.6149,191.48,191.43,8.38704754]
[1735035737478,2.6149,191.48,191.42,57.73079333]
[1735035738190,8.38704754,191.5,191.42,60.34639333]
[1735035738391,2.6151,191.47,191.42,2.6156]
[1735035741590,2.6148,191.49,191.43,11.00264754]
[1735035741891,4.7575,191.53,191.45,8.38704754]
[1735035741892,8.38704754,191.52,191.45,8.38704754]
[1735035742084,4.7575,191.53,191.47,8.38704754]
[1735035742290,2.6145,191.52,191.47,11.00214754]
[1735035742684,3.1,191.56,191.47,8.38704754]
[1735035742889,2.6142,191.54,191.49,2.6148]
[1735035743291,8.38704754,191.55,191.47,8.38704754]
[1735035744093,2.6143,191.53,191.48,2.6149]
[1735035745194,2.6143,191.53,191.49,2.6148]
[1735035746096,11.00104754,191.55,191.5,2.6146]
[1735035746297,2.614,191.55,191.5,2.6146]
[1735035746898,2.6141,191.54,191.5,2.6146]
[1735035748597,8.38704754,191.55,191.45,3.1]
[1735035748793,2.6145,191.52,191.47,8.38704754]
[1735035750298,8.38704754,191.55,191.47,8.38704754]
[1735035750500,8.38704754,191.53,191.44,2.6153]
[1735035750800,8.38704754,191.53,191.44,5.7153]
[1735035751001,8.38704754,191.53,191.45,8.38704754]
[1735035751196,2.6148,191.5,191.45,8.38704754]
[1735035751603,8.38704754,191.53,191.45,8.38704754]
[1735035752100,2.6146,191.51,191.45,11.00234754]
[1735035752301,8.38704754,191.49,191.4,3.0502]
[1735035752596,2.6155,191.44,191.4,11.43724754]
[1735035752901,8.38704754,191.49,191.4,11.43724754]
[1735035753197,8.38704754,191.49,191.42,8.38704754]
[1735035754399,2.6153,191.45,191.42,8.38704754]
[1735035756695,2.6153,191.45,191.4,2.616]
[1735035756997,11.5953,191.45,191.4,8.38704754]
[1735035758297,11.5953,191.45,191.4,11.00304754]
[1735035768313,11.5953,191.45,191.4,2.616]
[1735035768516,11.5953,191.45,191.41,8.38704754]
[1735035769405,11.5953,191.45,191.4,2.616]
[1735035769703,11.5953,191.45,191.41,8.38704754]
[1735035770513,2.6155,191.44,191.41,8.38704754]
[1735035771908,11.2455,191.44,191.41,8.38704754]
[1735035780018,2.6157,191.42,191.38,2.6162]
[1735035780223,2.6157,191.42,191.39,8.38704754]
[1735035781823,2.6156,191.43,191.39,8.38704754]
[1735035782621,8.63,191.44,191.42,8.38704754]
[1735035783927,8.63,191.44,191.43,2.6156]
[1735035785524,8.38704754,191.55,191.42,8.38704754]
[1735035785831,8.38704754,191.55,191.41,3.12]
[1735035785832,8.38704754,191.55,191.49,8.38704754]
[1735035786327,8.38704754,191.55,191.49,11.00174754]
[1735035786623,15.63704754,191.55,191.49,8.38704754]
[1735035786820,8.38704754,191.53,191.47,11.50704754]
[1735035787825,2.6145,191.51,191.47,11.50704754]
[1735035791022,7.25,191.55,191.47,11.50704754]
[1735035791219,15.63704754,191.55,191.47,11.50704754]
[1735035791719,2.6142,191.54,191.48,2.6149]
[1735035792229,15.63704754,191.55,191.48,2.6149]
[1735035792524,7.25,191.55,191.49,11.00174754]
[1735035793532,2.6141,191.54,191.49,11.00174754]
[1735035795332,8.38704754,191.54,191.47,11.50704754]
[1735035795832,8.38704754,191.54,191.47,8.38704754]
[1735035796036,2.6147,191.5,191.47,8.38704754]
[1735035802847,9.8647,191.5,191.47,8.38704754]
[1735035808248,7.25,191.5,191.49,8.38704754]
[1735035809550,7.25,191.5,191.49,11.00184754]
[1735035810253,7.25,191.5,191.49,8.38704754]
[1735035822570,7.25,191.5,191.47,2.615]
[1735035822768,7.25,191.5,191.44,14.22211545]
[1735035823070,2.615,191.48,191.45,8.38704754]
[1735035825067,2.615,191.48,191.43,2.6155]
[1735035825269,2.615,191.48,191.45,8.38704754]
[1735035827666,8.38704754,191.48,191.39,1.6334]
[1735035827874,8.38704754,191.48,191.38,57.73079333]
[1735035828170,8.38704754,191.48,191.4,8.38704754]
[1735035829372,2.6157,191.43,191.4,8.38704754]
[1735035830471,8.38704754,191.46,191.4,8.38704754]
[1735035830774,8.38704754,191.46,191.38,8.38704754]
[1735035830974,15.62704754,191.46,191.38,8.38704754]
[1735035831176,2.6155,191.44,191.38,8.38704754]
[1735035831373,15.62704754,191.46,191.38,8.38704754]
[1735035832276,2.6159,191.41,191.38,8.38704754]
[1735035832677,8.38704754,191.44,191.35,3.04]
[1735035832873,8.38704754,191.44,191.37,8.38704754]
[1735035833577,1.5029,191.43,191.37,8.38704754]
[1735035836672,2.6161,191.4,191.37,8.38704754]
[1735035838581,1.5029,191.43,191.35,3.04]
[1735035838879,2.6163,191.39,191.36,8.38704754]
[1735035839676,2.6168,191.35,191.29,2.6174]
[1735035839885,2.6168,191.35,191.32,8.38704754]
[1735035840279,3.0893,191.42,191.3,8.38704754]
[1735035840474,11.42704754,191.41,191.32,8.38704754]
[1735035840780,11.42704754,191.41,191.33,8.38704754]
[1735035841182,3.04,191.41,191.33,8.38704754]
[1735035841377,8.38704754,191.4,191.33,8.38704754]
[1735035841573,3.0893,191.42,191.26,3.1557]
[1735035841574,3.0893,191.42,191.35,8.38704754]
[1735035841773,3.0893,191.42,191.37,8.38704754]
[1735035842577,2.6159,191.41,191.37,8.38704754]
[1735035843774,1.5029,191.43,191.37,8.38704754]
[1735035844085,1.5029,191.43,191.39,11.00314754]
[1735035844279,17.8533707,191.46,191.39,8.38704754]
[1735035845480,2.6153,191.45,191.39,8.38704754]
[1735035846279,2.6153,191.45,191.29,78.86211131]
[1735035846586,2.6153,191.45,191.39,8.38704754]
[1735035847585,2.6153,191.45,191.39,11.00314754]
[1735035848285,2.6153,191.45,191.4,2.616]
[1735035849386,2.6155,191.44,191.4,2.616]
[1735035849885,9.8552,191.46,191.41,2.6158]
[1735035850081,9.8552,191.46,191.41,11.00284754]
[1735035850286,7.24,191.46,191.43,8.38704754]
[1735035851488,7.24,191.46,191.42,3.06]
[1735035852677,7.24,191.46,191.42,5.6756]
[1735035853785,7.24,191.46,191.42,14.06264754]
[1735035854092,7.24,191.46,191.42,3.06]
[1735035854285,7.24,191.46,191.42,11.44704754]
[1735035854986,7.24,191.46,191.44,8.38704754]
[1735035855586,7.24,191.46,191.44,11.00244754]
[1735035855786,57.17971817,191.66,191.44,8.38704754]
[1735035855988,8.38704754,191.58,191.5,8.38704754]
[1735035856182,2.6141,191.55,191.5,8.38704754]
[1735035858090,2.6141,191.55,191.5,11.00164754]
[1735035858594,2.6141,191.55,191.49,8.38704754]
[1735035859692,2.6141,191.55,191.5,2.6146]
[1735035863095,11.00114754,191.55,191.49,8.38704754]
[1735035864095,11.00114754,191.55,191.49,11.00174754]
[1735035864800,2.6141,191.55,191.49,11.00174754]
[1735035866502,2.6141,191.55,191.51,8.38704754]
[1735035866704,1.5568,191.63,191.53,8.38704754]
[1735035867003,9.94384754,191.63,191.57,8.38704754]
[1735035867203,1.5568,191.63,191.59,8.38704754]
[1735035867902,2.6129,191.64,191.59,8.38704754]
[1735035869599,2.6129,191.64,191.59,11.00044754]
[1735035869800,2.6123,191.67,191.63,8.38704754]
[1735035870505,2.6121,191.69,191.65,8.38704754]
[1735035870706,1.5412,191.71,191.67,8.38704754]
[1735035870911,8.38704754,191.74,191.67,8.38704754]
[1735035871100,8.38704754,191.74,191.67,10.99934754]
[1735035871307,8.38704754,191.76,191.69,8.38704754]
[1735035871902,8.38704754,191.74,191.58,1.6312]
[1735035872206,8.38704754,191.74,191.66,8.38704754]
[1735035872406,8.38704754,191.74,191.66,11.44704754]
[1735035873309,8.38704754,191.72,191.62,3.06]
[1735035873509,8.38704754,191.7,191.62,3.06]
[1735035873705,8.38704754,191.7,191.62,11.44704754]
[1735035874813,8.38704754,191.7,191.62,3.06]
[1735035875017,2.6124,191.67,191.62,3.06]
[1735035875319,8.38704754,191.68,191.62,3.06]
[1735035875711,2.6123,191.68,191.63,8.38704754]
[1735035876014,8.38704754,191.7,191.62,3.06]
[1735035876216,8.38704754,191.7,191.62,11.44704754]
[1735035876418,2.6125,191.67,191.62,11.44704754]
[1735035878515,8.38704754,191.7,191.62,11.44704754]
[1735035878516,2.6125,191.66,191.62,11.44704754]
[1735035878919,8.38704754,191.68,191.62,11.44704754]
[1735035879115,2.6126,191.65,191.62,11.44704754]
[1735035879315,8.38704754,191.66,191.59,8.38704754]
[1735035880115,2.613,191.62,191.56,81.36040078]
[1735035880319,8.38704754,191.64,191.56,8.38704754]
[1735035881417,8.38704754,191.64,191.58,8.38704754]
[1735035882015,10.99994754,191.64,191.58,8.38704754]
[1735035882221,2.6129,191.64,191.58,8.38704754]
[1735035882521,2.6129,191.64,191.58,11.00054754]
[1735035882716,3.0685,191.65,191.58,11.00054754]
[1735035882918,2.6129,191.63,191.58,11.00054754]
[1735035883419,3.0685,191.65,191.58,11.00054754]
[1735035883623,5.6812,191.65,191.58,11.00054754]
[1735035883823,3.0685,191.65,191.58,11.00054754]
[1735035884524,2.6129,191.63,191.58,8.38704754]
[1735035885115,2.6131,191.62,191.56,5.6938]
[1735035885323,2.6131,191.62,191.57,8.38704754]
[1735035888227,3.0685,191.65,191.59,8.38704754]
[1735035888428,2.6128,191.64,191.59,8.38704754]
[1735035889129,1.478,191.71,191.63,8.38704754]
[1735035889329,9.86504754,191.71,191.63,8.38704754]
[1735035889531,2.6122,191.68,191.63,8.38704754]
[1735035890427,2.6122,191.68,191.63,10.99994754]
[1735035891833,2.6125,191.66,191.62,2.613]
[1735035892932,8.38704754,191.69,191.62,11.00004754]
[1735035893231,8.38704754,191.69,191.63,2.6128]
[1735035893232,2.6123,191.67,191.63,2.6128]
[1735035893624,2.6123,191.67,191.62,8.38704754]
[1735035893625,8.38704754,191.65,191.52,57.55622034]
[1735035893822,10.99994754,191.63,191.58,2.6135]
[1735035894227,2.613,191.62,191.58,2.6135]
[1735035894730,2.613,191.62,191.57,2.6137]
[1735035896533,1.6198,191.65,191.56,8.38704754]
[1735035896832,2.6129,191.64,191.58,2.6136]
[1735035898837,2.6129,191.64,191.58,11.00064754]
[1735035900232,2.6129,191.64,191.58,8.38704754]
[1735035900428,4.2324,191.65,191.53,3.08]
[1735035900630,4.2324,191.65,191.6,8.38704754]
[1735035900631,1.6198,191.65,191.6,8.38704754]
[1735035900832,10.00684754,191.65,191.58,11.00044754]
[1735035901030,2.613,191.62,191.58,8.38704754]
[1735035901233,2.613,191.62,191.56,8.38704754]
[1735035902340,2.6129,191.63,191.6,8.38704754]
[1735035903329,1.6198,191.65,191.6,8.38704754]
[1735035903535,4.2325,191.65,191.6,11.00024754]
[1735035904538,2.6127,191.65,191.61,2.6131]
[1735035906341,11.46704754,191.68,191.63,2.6128]
[1735035906342,2.6124,191.67,191.63,2.6128]
[1735035909041,8.38704754,191.69,191.62,8.38704754]
[1735035909244,8.38704754,191.67,191.62,8.38704754]
[1735035909446,8.38704754,191.67,191.61,2.6131]
[1735035909846,2.6126,191.65,191.62,2.613]
[1735035913555,2.6126,191.65,191.62,11.00004754]
[1735035919056,2.6124,191.67,191.62,11.00004754]
[1735035919356,1.478,191.71,191.66,8.38704754]
[1735035919552,1.489,191.75,191.7,8.38704754]
[1735035920458,4.83478849,191.74,191.7,8.38704754]
[1735035921360,2.6116,191.73,191.7,8.38704754]
[1735035922453,2.6118,191.72,191.65,3.12]
[1735035922659,8.38704754,191.72,191.64,8.38704754]
[1735035922859,8.38704754,191.7,191.64,8.38704754]
[1735035923248,8.38704754,191.68,191.61,3.12]
[1735035923749,2.613,191.63,191.58,11.00054754]
[1735035924257,2.613,191.63,191.58,8.38704754]
[1735035924452,8.38704754,191.66,191.6,8.38704754]
[1735035924656,2.6127,191.64,191.6,8.38704754]
[1735035924858,2.6127,191.64,191.59,2.6133]
[1735035926956,2.6129,191.63,191.59,2.6133]
[1735035927154,8.38704754,191.64,191.55,3.12]
[1735035927361,8.38704754,191.64,191.56,8.38704754]
[1735035927555,2.6133,191.6,191.56,8.38704754]
[1735035927757,2.6133,191.6,191.54,8.38704754]
[1735035927954,8.38704754,191.58,191.5,69.06326788]
[1735035928154,8.38704754,191.58,191.5,57.55622034]
[1735035928355,8.38704754,191.54,191.48,65.94326788]
[1735035928659,8.38704754,191.54,191.48,57.55622034]
[1735035929353,2.6145,191.51,191.46,8.38704754]
[1735035930258,2.6145,191.51,191.45,2.6152]
[1735035930954,2.6147,191.5,191.44,2.6155]
[1735035933459,2.6144,191.52,191.45,2.6152]
[1735035933760,2.6144,191.52,191.43,13.1128655]
[1735035934569,2.6144,191.52,191.46,2.6151]
[1735035935767,3.12,191.65,191.49,13.1128655]
[1735035935962,3.12,191.65,191.52,13.1128655]
[1735035935963,1.5282,191.64,191.52,13.1128655]
[1735035936168,1.5282,191.64,191.53,3.12]
[1735035936862,2.6131,191.61,191.55,2.614]
[1735035946373,2.613,191.62,191.57,2.6137]
[1735035949081,1.5282,191.64,191.52,16.2928655]
[1735035949580,2.6136,191.58,191.53,2.6142]
[1735035950082,2.6136,191.58,191.52,16.2928655]
[1735035950279,2.6136,191.58,191.54,2.6141]
[1735035954181,2.6136,191.58,191.55,8.38357704]
[1735035954782,2.6136,191.58,191.52,3.18]
[1735035954979,2.6137,191.57,191.54,8.38357704]
[1735035955283,8.38357704,191.6,191.52,14.17777704]
[1735035955483,11.56357704,191.6,191.52,10.99777704]
[1735035956288,2.6138,191.56,191.52,10.99777704]
[1735035956477,11.56357704,191.6,191.41,2.9863]
[1735035956478,8.38357704,191.58,191.41,2.9863]
[1735035956678,8.38357704,191.58,191.51,8.38357704]
[1735035957383,2.614,191.55,191.42,3.18]
[1735035957779,2.614,191.55,191.52,8.38357704]
[1735035958182,11.56357704,191.6,191.52,8.38357704]
[1735035958383,11.56357704,191.6,191.47,3.18]
[1735035958384,2.6138,191.57,191.54,8.38357704]
[1735035962583,9.91177704,191.64,191.56,8.38357704]
[1735035962884,3.18,191.63,191.58,8.38357704]
[1735035963085,1.5282,191.64,191.6,8.38357704]
[1735035963489,6.39,191.66,191.6,8.38357704]
[1735035963986,2.6127,191.65,191.6,8.38357704]
[1735035965486,2.6127,191.65,191.61,2.6131]
[1735035969989,2.6127,191.65,191.6,10.99687704]
[1735035970689,11.59357704,191.66,191.6,10.99687704]
[1735035970893,2.6127,191.64,191.6,10.99687704]
[1735035974391,0.6127,191.64,191.6,10.99687704]
[1735035974593,3.21,191.66,191.6,10.99687704]
[1735035974993,3.69,191.65,191.62,10.99647704]
[1735035975593,0.69,191.65,191.62,8.38357704]
[1735035975900,0.69,191.65,191.63,2.6128]
[1735035978394,0.69,191.65,191.64,8.38357704]
[1735035978599,0.69,191.65,191.64,10.99627704]
[1735035979590,2.6119,191.71,191.64,8.38357704]
[1735035979796,10.60686553,191.74,191.68,8.38357704]
[1735035980196,10.60686553,191.74,191.67,2.6123]
[1735035980397,10.60686553,191.74,191.68,8.38357704]
[1735035980698,0.60686553,191.74,191.68,8.38357704]
[1735035980895,8.38357704,191.75,191.68,8.38357704]
[1735035981295,3.0864,191.78,191.7,8.38357704]
[1735035981492,3.0864,191.78,191.72,8.38357704]
[1735035982396,2.6111,191.77,191.72,8.38357704]
[1735035982599,89.92153075,191.82,191.76,8.38357704]
[1735035983000,8.38357704,191.84,191.76,8.38357704]
[1735035983207,2.6103,191.82,191.78,8.38357704]
[1735035983400,1.5122,191.88,191.78,8.38357704]
[1735035983598,8.38357704,191.86,191.77,3.12]
[1735035983794,8.38357704,191.86,191.79,8.38357704]
[1735035984397,2.61,191.85,191.79,8.38357704]
[1735035985604,2.61,191.85,191.79,10.99417704]
[1735035986201,2.61,191.85,191.79,2.6106]
[1735035986997,4.17,191.84,191.79,2.6106]
[1735035988808,4.17,191.84,191.8,2.6105]
[1735035991205,4.17,191.84,191.81,2.6104]
[1735035991604,4.17,191.84,191.81,13.06619089]
[1735035991814,0.7258,191.84,191.83,2.6101]
[1735035992417,0.7258,191.84,191.83,5.7301]
[1735035995714,0.7258,191.84,191.83,2.6101]
[1735035999714,0.7258,191.84,191.82,3.12]
[1735036000311,0.7258,191.84,191.78,13.06619089]
[1735036000515,0.7258,191.84,191.75,91.73882199]
[1735036000726,2.6103,191.82,191.77,2.6109]
[1735036002516,2.6102,191.83,191.78,2.6108]
[1735036005529,0.7258,191.84,191.75,13.06619089]
[1735036005717,2.6106,191.8,191.75,2.6112]
[1735036006523,2.6106,191.8,191.73,3.12]
[1735036006724,3.3358,191.84,191.75,13.06619089]
[1735036007531,0.7258,191.84,191.75,13.06619089]
[1735036008130,9.09116532,191.84,191.76,8.36536532]
[1735036008431,2.6104,191.81,191.76,10.97646532]
[1735036010429,8.36536532,191.8,191.65,57.55622034]
[1735036010729,1.5246,191.79,191.72,8.36536532]
[1735036011331,1.5246,191.79,191.72,10.97696532]
[1735036011332,2.611,191.77,191.72,10.97696532]
[1735036015630,4.17,191.76,191.72,10.97696532]
[1735036019431,12.53536532,191.76,191.69,8.36536532]
[1735036020438,2.6115,191.74,191.69,8.36536532]
[1735036021839,2.6115,191.74,191.69,10.97736532]
[1735036022232,6.7812,191.76,191.72,2.6116]
[1735036022427,4.17,191.76,191.71,8.36536532]
[1735036023444,4.17,191.76,191.73,2.6115]
[1735036024246,4.17,191.76,191.75,8.36536532]
[1735036024439,4.17,191.76,191.75,10.97656532]
[1735036026339,4.17,191.76,191.75,2.6112]
[1735036027439,4.17,191.76,191.73,2.6114]
[1735036027644,4.17,191.76,191.71,3.12]
[1735036027645,4.17,191.76,191.71,8.36536532]
[1735036028340,4.17,191.76,191.71,10.97706532]
[1735036029847,8.36536532,191.75,191.6,57.55622034]
[1735036030039,10.97696532,191.73,191.67,2.6122]
[1735036031345,2.6117,191.72,191.67,2.6122]
[1735036035350,2.6117,191.72,191.68,8.36536532]
[1735036036047,4.17,191.71,191.68,8.36536532]
[1735036036353,6.7819,191.71,191.66,2.6125]